[Event "44th Chess Olympiad Women 2022"]
[Site "Chennai"]
[Date "2022.07.30"]
[Round "2.23"]
[White "Movsesian, Julia"]
[Black "Mezioud, Amina"]
[Result "1-0"]
[ECO "B23"]
[WhiteElo "2291"]
[BlackElo "2024"]
[Annotator "TA"]
[PlyCount "63"]
[EventDate "2022.07.29"]
[EventType "team-tourn"]
[EventCountry "IND"]
[SourceTitle "playchess.com"]
[Source "ChessBase"]
[SourceQuality "1"]
[WhiteTeam "Czech Republic"]
[BlackTeam "Algeria"]
[WhiteTeamCountry "CZE"]
[BlackTeamCountry "ALG"]
[TimeControl "40/5400+30:1800+30"]

{[%evp 9,63,20,33,19,100,102,105,91,91,73,160,121,202,206,186,183,187,195,179,131,164,137,203,212,217,204,315,221,201,252,272,258,344,232,250,163,145,146,398,395,401,401,401,401,438,233,204,131,719,672,29989,29990,29994,29995,29998,29999]} 1. e4 {[%emt 0:00:02]} c5 {[%emt 0:00:39]} 2. Nc3 {[%emt 0:00:12]} e6 {[%emt 0:00:07]} 3. Nge2 {[%emt 0:00:41]} a6 {[%emt 0:00:19]} 4. g3 {[%emt 0:00:15]} b5 {[%emt 0:03:58]} 5. Bg2 {[%emt 0:00:19]} Bb7 {[%emt 0:00:10]} 6. d4 {[%emt 0:00:29] B23: Closed Sicilian: Lines without g3.} c4 {[%emt 0:05:04] [#]} (6... cxd4 $11 {keeps the balance.} 7. Nxd4 b4) 7. O-O $146 {[%emt 0:04:37]} ({Predecessor:} 7. a3 Be7 8. O-O f5 9. exf5 Bxg2 10. Kxg2 exf5 11. d5 Bd6 12. Re1 Kf8 13. Nd4 Qf6 {1-0 (33) Ramien,D (2043)-Rausch,A (1979) Willingen 2015}) 7... d6 {[%emt 0:04:50]} 8. Re1 {[%emt 0:04:43] White is better.} Nd7 {[%emt 0:00:44]} 9. Nf4 {[%emt 0:05:14]} b4 {[%emt 0:05:57]} (9... g6 $142) 10. Na4 {[%emt 0:03:15]} Qa5 {[%emt 0:02:16] [#]} (10... h5 $16) 11. b3 $1 $18 {[%emt 0:01:10]} Qc7 {[%emt 0:11:15]} 12. bxc4 {[%emt 0:13:13]} Qxc4 {[%emt 0:00:31]} 13. Nb2 {[%emt 0:01:01]} Qc7 {[%emt 0:02:53]} 14. Nbd3 {[%emt 0:00:54]} (14. Bd2 $18) 14... Ngf6 {[%emt 0:08:20]} 15. a3 {[%emt 0:04:31]} (15. Nxb4 Rb8 16. Rb1 Be7 $16) 15... bxa3 {[%emt 0:06:20]} (15... Be7 $16 16. e5 (16. axb4 g5 $16) (16. Nxb4 O-O $14) 16... dxe5) 16. Bxa3 {[%emt 0:00:43]} g5 {[%emt 0:02:52]} 17. Nh5 {[%emt 0:10:15]} h6 {[%emt 0:20:35]} (17... Nxh5 {was called for.} 18. Qxh5 h6) 18. Rb1 {[%emt 0:11:43]} Nxh5 {[%emt 0:06:20]} 19. Qxh5 {[%emt 0:00:08]} e5 {[%emt 0:06:42]} 20. Bh3 {[%emt 0:08:57]} Bc8 {[%emt 0:05:57]} 21. Qf3 {[%emt 0:08:36]} (21. Be6 Nf6 22. Qf3 fxe6 $16) 21... Bg7 {[%emt 0:00:43]} 22. Nb4 {[%emt 0:01:35] Hoping for Nd5.} Nb6 {[%emt 0:01:40]} 23. Bxc8 {[%emt 0:02:44] White is more active.} Qxc8 {[%emt 0:00:20][%mdl 8192]} (23... Rxc8 $16 24. dxe5 (24. Nxa6 Qd8 $16) 24... Bxe5) 24. Nd5 {[%emt 0:00:49]} Nc4 {[%emt 0:00:37]} 25. Nb6 {[%emt 0:03:16]} Nxb6 {[%emt 0:00:37]} 26. Rxb6 {[%emt 0:00:01]} Rb8 {[%emt 0:02:10]} 27. Rxd6 {[%emt 0:01:45]} (27. Reb1 $142 Rxb6 28. Rxb6) 27... exd4 {[%emt 0:00:29]} 28. Rd5 {[%emt 0:02:56] Threatens to win with Bd6.} Qxc2 $2 {[%emt 0:00:48][%mdl 8192] This costs Black the game.} (28... Qc3 $16 29. Qxc3 dxc3) 29. Qf5 {[%emt 0:01:44][%csl Gd5][%cal Rf5d7]} Qc8 {[%emt 0:01:00] [#] Prevents Qd7+.} 30. Re5+ $1 {[%emt 0:00:24][%mdl 512] White mates.} Bxe5 {[%emt 0:00:39]} (30... Kd8 31. Be7+) 31. Qxe5+ {[%emt 0:00:01]} Kd7 {[%emt 0:00:00]} 32. Qd6+ {[%emt 0:00:09] Weighted Error Value: White=0.26 (precise) /Black=0.56} 1-0

[Event "44th Chess Olympiad Women 2022"]
[Site "Chennai"]
[Date "2022.07.30"]
[Round "2.23"]
[White "Petrova, Kristyna"]
[Black "Abdi, Zineb Dina"]
[Result "1/2-1/2"]
[ECO "A29"]
[WhiteElo "2238"]
[BlackElo "1899"]
[Annotator "TA"]
[PlyCount "73"]
[EventDate "2022.07.29"]
[EventType "team-tourn"]
[EventCountry "IND"]
[SourceTitle "playchess.com"]
[Source "ChessBase"]
[SourceQuality "1"]
[WhiteTeam "Czech Republic"]
[BlackTeam "Algeria"]
[WhiteTeamCountry "CZE"]
[BlackTeamCountry "ALG"]
[TimeControl "40/5400+30:1800+30"]

{[%evp 20,73,14,11,18,13,14,2,22,17,19,15,12,25,18,4,20,0,8,10,11,14,15,6,6,0,4,0,0,0,0,0,7,0,4,0,0,0,0,0,0,0,0,0,-2,-8,0,0,0,0,0,-8,0,-10,0,0]} 1. c4 {[%emt 0:00:03]} Nf6 {[%emt 0:01:09]} 2. Nc3 {[%emt 0:00:29]} e5 {[%emt 0:01:25]} 3. g3 {[%emt 0:00:17]} d5 {[%emt 0:00:45]} 4. cxd5 {[%emt 0:00:07]} Nxd5 {[%emt 0:00:07]} 5. Bg2 {[%emt 0:00:07]} Nb6 {[%emt 0:00:48]} 6. Nf3 {[%emt 0:00:15]} Nc6 {[%emt 0:00:29]} 7. O-O {[%emt 0:00:15]} Be7 {[%emt 0:00:40]} 8. Rb1 {[%emt 0:00:43]} a5 {[%emt 0:06:40]} 9. d3 {[%emt 0:05:34]} O-O {[%emt 0:02:41]} 10. Be3 {[%emt 0:01:17]} Be6 {[%emt 0:03:08]} 11. a3 {[%emt 0:07:09]} Nd5 {[%emt 0:04:45] A29: English Opening: Four Knights Variation with 4 g3.} 12. Nxd5 {[%emt 0:03:01]} Bxd5 {[%emt 0:00:19]} 13. Qa4 {[%emt 0:04:21]} f6 {[%emt 0:04:48]} 14. Rfc1 {[%emt 0:02:50] [#]} Qd7 $146 {[%emt 0:09:11]} ({Predecessor:} 14... Qd6 15. Qb5 Rfd8 16. Bc5 Qd7 17. e4 Be6 18. Bxe7 Nxe7 19. Qxb7 c5 20. Qb6 Rdb8 21. Qxc5 {1-0 (35) Tari,A (2584)-Grover,S (2467) Chess.com INT 2017}) 15. Nd2 {[%emt 0:10:37]} Bxg2 {[%emt 0:03:48]} 16. Kxg2 {[%emt 0:00:03] [#] Qb3+ is the strong threat.} Qd5+ {[%emt 0:00:37]} 17. Nf3 {[%emt 0:05:39] The position is equal.} Rfd8 {[%emt 0:05:21]} 18. Qc4 {[%emt 0:06:10]} Qxc4 {[%emt 0:09:54]} 19. Rxc4 {[%emt 0:00:06]} Rd7 {[%emt 0:00:47]} 20. Rbc1 {[%emt 0:01:33]} Bd6 {[%emt 0:02:29]} 21. Nd2 {[%emt 0:12:11]} Nd8 {[%emt 0:08:01]} 22. Ne4 {[%emt 0:03:45]} Ne6 {[%emt 0:01:43]} 23. Nxd6 {[%emt 0:15:23]} Rxd6 {[%emt 0:02:11]} 24. f4 {[%emt 0:00:59]} exf4 {[%emt 0:10:14]} 25. Bxf4 {[%emt 0:00:05]} Nxf4+ {[%emt 0:00:21]} 26. gxf4 $11 {[%emt 0:00:06][%mdl 4096] Endgame KRR-KRR} c6 {[%emt 0:00:13]} 27. Re4 {[%emt 0:00:46]} Kf7 {[%emt 0:00:44] Against Re7+} 28. Rcc4 {[%emt 0:06:07]} Rad8 {[%emt 0:02:30]} 29. Ra4 {[%emt 0:01:37]} Rd5 {[%emt 0:01:42]} 30. b4 {[%emt 0:00:39]} f5 {[%emt 0:03:11]} 31. Re5 {[%emt 0:01:29]} Rxe5 {[%emt 0:02:05]} 32. fxe5 {[%emt 0:00:02]} axb4 {[%emt 0:00:54]} 33. Rxb4 {[%emt 0:00:05] KR-KR} Rd7 {[%emt 0:00:12]} 34. Kf3 {[%emt 0:06:51]} Ke6 {[%emt 0:01:11]} 35. Kf4 {[%emt 0:02:42]} h6 {[%emt 0:01:35]} 36. h4 {[%emt 0:00:04] Against g5+} g5+ {[%emt 0:06:27]} 37. hxg5 {[%emt 0:00:03] An even fight not without its subleties.  Weighted Error Value: White=0.03 (flawless) /Black=0.03 (flawless)} 1/2-1/2

[Event "44th Chess Olympiad Women 2022"]
[Site "Chennai"]
[Date "2022.07.30"]
[Round "2.23"]
[White "Nassr, Lina"]
[Black "Pilsova, Karolina"]
[Result "1/2-1/2"]
[ECO "D04"]
[WhiteElo "2011"]
[BlackElo "2230"]
[Annotator "TA"]
[PlyCount "60"]
[EventDate "2022.07.29"]
[EventType "team-tourn"]
[EventCountry "IND"]
[SourceTitle "playchess.com"]
[Source "ChessBase"]
[SourceQuality "1"]
[WhiteTeam "Algeria"]
[BlackTeam "Czech Republic"]
[WhiteTeamCountry "ALG"]
[BlackTeamCountry "CZE"]
[TimeControl "40/5400+30:1800+30"]

{[%evp 9,60,8,6,3,12,0,18,14,4,7,18,1,30,15,28,29,23,23,20,8,15,16,9,11,11,12,10,10,17,8,35,42,41,0,3,0,0,0,0,0,0,0,0,0,0,0,0,0,1,0,3,0,15]} 1. d4 {[%emt 0:00:06]} Nf6 {[%emt 0:00:07]} 2. Nf3 {[%emt 0:00:06]} d5 {[%emt 0:00:05]} 3. e3 {[%emt 0:00:30]} Bf5 {[%emt 0:00:26]} 4. Bd3 {[%emt 0:01:20]} Bxd3 {[%emt 0:01:07]} 5. cxd3 {[%emt 0:00:48]} e6 {[%emt 0:01:56]} 6. Nc3 {[%emt 0:02:58] D04: Colle System.} Be7 {[%emt 0:01:38]} 7. e4 {[%emt 0:04:52]} O-O {[%emt 0:06:42]} 8. O-O {[%emt 0:08:10]} c5 {[%emt 0:11:20]} 9. dxc5 {[%emt 0:11:51]} Bxc5 {[%emt 0:06:08]} 10. Bg5 {[%emt 0:07:35] [#] And now e5 would win.} Be7 {[%emt 0:12:45]} 11. Qb3 {[%emt 0:08:33] [#]} Nbd7 $146 {[%emt 0:12:46]} ({Predecessor:} 11... b6 12. Rac1 Na6 13. e5 Nc5 14. Qc2 Ne8 15. Bxe7 Qxe7 16. d4 Nd7 17. Nb5 a6 {1-0 (62) Mestrovic,Z (2397)-Gombac,J (2290) Zadar 2003}) 12. Bxf6 {[%emt 0:10:25]} ({Much worse is} 12. Qxb7 Rb8 13. Qxa7 Nc5 $15) 12... Bxf6 {[%emt 0:01:28]} 13. exd5 {[%emt 0:07:07]} Nc5 {[%emt 0:06:07]} 14. Qb5 {[%emt 0:04:25]} Bxc3 {[%emt 0:07:19]} 15. Qxc5 {[%emt 0:04:26]} Bxb2 {[%emt 0:01:17] [#] White must now prevent ...b6.} 16. Rab1 {[%emt 0:06:08]} Bf6 {[%emt 0:00:36]} 17. dxe6 {[%emt 0:03:55]} (17. Rxb7 {with more complications.} Rc8 18. Qb5 a6 19. Qd7) 17... fxe6 {[%emt 0:08:02]} 18. Rxb7 {[%emt 0:02:29]} (18. Qc4 {seems wilder.} Qd7 19. Rfe1 Rfe8 20. Qb3) 18... Qxd3 {[%emt 0:00:28]} 19. Rxa7 {[%emt 0:01:26]} Rxa7 {[%emt 0:00:59]} (19... Qd5 $5 {[%cal Rd5c5]} 20. Qc7 Rxa7 21. Qxa7 e5 $11) 20. Qxa7 {[%emt 0:00:06]} Qd5 {[%emt 0:00:12]} 21. Rb1 {[%emt 0:03:56]} Ra8 {[%emt 0:03:03] The position is equal.} 22. Qb7 {[%emt 0:04:54]} Qxa2 {[%emt 0:05:15]} 23. h3 {[%emt 0:00:52]} Rd8 {[%emt 0:05:51]} 24. Re1 {[%emt 0:01:00]} Qd5 {[%emt 0:01:07]} 25. Qc7 {[%emt 0:00:57]} Qd6 {[%emt 0:03:45]} 26. Qc4 {[%emt 0:01:08]} Qd5 {[%emt 0:00:32]} 27. Qc7 {[%emt 0:00:47]} Qd6 {[%emt 0:00:11]} 28. Qc4 {[%emt 0:00:28]} Qd5 {[%emt 0:00:07]} 29. Qc7 {[%emt 0:00:16]} Qd6 {[%emt 0:00:06]} 30. Qc4 {[%emt 0:00:06]} Qd5 {[%emt 0:00:05] Weighted Error Value: White=0.03 (flawless) /Black=0.04 (flawless)} 1/2-1/2

[Event "44th Chess Olympiad Women 2022"]
[Site "Chennai"]
[Date "2022.07.30"]
[Round "2.23"]
[White "Nassr, Rania"]
[Black "Koubova, Anna Marie"]
[Result "1/2-1/2"]
[ECO "A47"]
[WhiteElo "1737"]
[BlackElo "2115"]
[Annotator "TA"]
[PlyCount "87"]
[EventDate "2022.07.29"]
[EventType "team-tourn"]
[EventCountry "IND"]
[SourceTitle "playchess.com"]
[Source "ChessBase"]
[SourceQuality "1"]
[WhiteTeam "Algeria"]
[BlackTeam "Czech Republic"]
[WhiteTeamCountry "ALG"]
[BlackTeamCountry "CZE"]
[TimeControl "40/5400+30:1800+30"]

{[%evp 12,87,16,0,0,-1,17,0,0,0,0,-9,-16,-9,-12,-18,-13,-10,-11,-54,-34,-45,-55,-50,-31,-52,-35,-42,-21,-34,-28,-30,-27,-26,-17,-28,-4,-28,0,0,0,0,0,0,0,0,0,0,7,-12,0,0,0,0,0,0,0,0,0,0,0,0,0,0,0,0,0,0,0,0,0,0,0,0,0,0,0,0]} 1. Nf3 {[%emt 0:00:08]} Nf6 {[%emt 0:00:23]} 2. d4 {[%emt 0:00:24]} e6 {[%emt 0:00:39]} 3. g3 {[%emt 0:00:57]} b6 {[%emt 0:00:45]} 4. Bg2 {[%emt 0:00:34]} Bb7 {[%emt 0:00:21]} 5. O-O {[%emt 0:01:04]} c5 {[%emt 0:01:44]} 6. e3 {[%emt 0:05:13]} Be7 {[%emt 0:02:03]} 7. b3 {[%emt 0:02:23]} O-O {[%emt 0:01:16] A47: 1 d4 Nf6 2 Nf3 b6: Torre, London and Colle Systems.} 8. Bb2 {[%emt 0:01:45]} cxd4 {[%emt 0:01:49]} 9. exd4 {[%emt 0:01:13]} d5 {[%emt 0:04:42]} 10. Ne5 {[%emt 0:04:48]} Nbd7 {[%emt 0:01:48]} 11. c4 {[%emt 0:11:51]} Qc7 {[%emt 0:02:36]} 12. Nc3 {[%emt 0:08:52]} dxc4 {[%emt 0:03:52] [#]} ({Resist} 12... Nxe5 13. dxe5 (13. Nb5 Nf3+ 14. Qxf3 Qd7 $15) 13... Ne4 {[#]} 14. Nxd5 $1 exd5 15. cxd5 $16) 13. Nxc4 $146 {[%emt 0:03:31]} ({Predecessor:} 13. Bxb7 Qxb7 14. bxc4 Nxe5 15. dxe5 Rfd8 16. Qe2 Nd7 17. Nb5 Nc5 18. f3 Nd3 19. Bd4 {½-½ (61) Seidens,U (2225)-Schuster,M Germany 1997}) 13... Bxg2 {[%emt 0:05:25]} 14. Kxg2 {[%emt 0:00:25]} b5 {[%emt 0:00:31]} 15. Nd2 {[%emt 0:06:06]} Nb6 {[%emt 0:04:23]} 16. Rc1 {[%emt 0:06:45]} Qd7 {[%emt 0:01:30]} 17. Nce4 {[%emt 0:06:03]} Rfd8 {[%emt 0:10:21]} 18. Qf3 {[%emt 0:03:30]} Rac8 {[%emt 0:03:49]} 19. Rfd1 {[%emt 0:09:30]} Qd5 {[%emt 0:06:27]} 20. Nc3 {[%emt 0:08:18]} Qxf3+ {[%emt 0:03:14]} 21. Nxf3 {[%emt 0:00:08]} a6 {[%emt 0:00:17]} 22. Ne5 {[%emt 0:02:41]} h6 {[%emt 0:03:49]} 23. h3 {[%emt 0:01:08]} Rc7 {[%emt 0:06:37]} 24. Ne2 {[%emt 0:02:21]} Rdc8 {[%emt 0:02:14] [#] Hoping for ...Rc2.} 25. Rxc7 {[%emt 0:00:11] The position is equal.} Rxc7 {[%emt 0:00:05]} 26. Rc1 {[%emt 0:00:11] Prevents Rc2.} Rxc1 {[%emt 0:01:41]} 27. Nxc1 {[%emt 0:00:01]} Nfd7 {[%emt 0:10:31]} 28. Nc6 {[%emt 0:01:46]} Bd6 {[%emt 0:01:03]} 29. Nd3 {[%emt 0:00:40]} Nd5 {[%emt 0:17:48]} 30. Nce5 {[%emt 0:00:45]} Nxe5 {[%emt 0:02:32]} 31. dxe5 $11 {[%emt 0:00:02][%mdl 4096] Endgame KBN-KBN} Be7 {[%emt 0:00:15]} 32. Bd4 {[%emt 0:03:27]} Kf8 {[%emt 0:00:50]} 33. Kf3 {[%emt 0:01:27]} Ke8 {[%emt 0:00:34]} 34. a4 {[%emt 0:01:25]} Nb4 {[%emt 0:00:50]} 35. Nxb4 {[%emt 0:00:32]} Bxb4 {[%emt 0:00:04]} 36. axb5 {[%emt 0:00:09]} axb5 {[%emt 0:00:05] KB-KB} 37. Ke4 {[%emt 0:00:36]} Kd7 {[%emt 0:00:13]} 38. f4 {[%emt 0:00:30]} Kc6 {[%emt 0:00:27]} 39. g4 {[%emt 0:01:06]} Bc5 {[%emt 0:01:32]} 40. Bc3 {[%emt 0:00:36]} g6 {[%emt 0:00:37]} 41. b4 {[%emt 0:32:39]} Be7 {[%emt 0:01:33]} 42. Bd2 {[%emt 0:00:00]} h5 {[%emt 0:06:56]} 43. g5 {[%emt 0:00:00]} Bd8 {[%emt 0:01:34]} 44. Bc3 {[%emt 0:00:00] Weighted Error Value: White=0.06 (flawless) /Black=0.05 (flawless)} 1/2-1/2

[Event "44th Chess Olympiad Women 2022"]
[Site "Chennai"]
[Date "2022.07.30"]
[Round "2.24"]
[White "Nguyen, Thi Mai Hung"]
[Black "Diaz Charpentier, Kristel Meliss"]
[Result "1/2-1/2"]
[ECO "E14"]
[WhiteElo "2223"]
[BlackElo "1989"]
[Annotator "TA"]
[PlyCount "104"]
[EventDate "2022.07.29"]
[EventType "team-tourn"]
[EventCountry "IND"]
[SourceTitle "playchess.com"]
[Source "ChessBase"]
[SourceQuality "1"]
[WhiteTeam "Vietnam"]
[BlackTeam "Costa Rica"]
[WhiteTeamCountry "VIE"]
[BlackTeamCountry "CRI"]
[TimeControl "40/5400+30:1800+30"]

{[%evp 23,104,0,0,8,0,-11,56,0,100,25,32,0,0,0,0,0,0,0,0,0,0,0,0,-23,-4,-8,-10,-6,-9,-5,0,-62,-5,-16,5,0,0,0,0,0,0,0,0,0,0,0,0,0,0,0,0,0,0,0,0,0,0,0,0,0,0,0,0,0,0,0,0,0,0,0,0,0,0,0,0,0,0,0,0,0,0,0,0]} 1. d4 {[%emt 0:00:06]} Nf6 {[%emt 0:00:15]} 2. Nf3 {[%emt 0:00:14]} e6 {[%emt 0:00:07]} 3. e3 {[%emt 0:00:12]} c5 {[%emt 0:00:15]} 4. Bd3 {[%emt 0:00:24]} b6 {[%emt 0:00:22]} 5. O-O {[%emt 0:01:15]} Bb7 {[%emt 0:00:15]} 6. c4 {[%emt 0:05:46]} Be7 {[%emt 0:02:16]} 7. Nc3 {[%emt 0:00:32]} cxd4 {[%emt 0:02:39]} 8. exd4 {[%emt 0:00:50]} d5 {[%emt 0:03:13]} 9. Qe2 {[%emt 0:04:45]} Nc6 {[%emt 0:02:54]} 10. cxd5 {[%emt 0:04:39]} Nxd5 {[%emt 0:00:08]} 11. Rd1 {[%emt 0:00:30]} O-O {[%emt 0:04:38]} 12. Nxd5 {[%emt 0:16:29]} Qxd5 {[%emt 0:00:13]} 13. Be4 {[%emt 0:03:35] E14: Queen's Indian: Classical Variation (4 e3).} Qh5 {[%emt 0:03:29]} 14. Bf4 {[%emt 0:11:06]} Rfd8 {[%emt 0:13:01]} (14... Rad8 $11) 15. Qe3 {[%emt 0:04:21] [#]} ({White should try} 15. Rac1 $14 Rac8 16. h3) 15... Qb5 $146 {[%emt 0:15:39] [#]} (15... Rac8 $11 {keeps the balance.}) ({Predecessor:} 15... Rac8 16. Rac1 Na5 17. Bxb7 Nxb7 18. Bc7 Re8 19. Be5 Na5 20. Qe4 Qg6 21. Qxg6 hxg6 {½-½ (33) Futida,S (2137)-Cade,S (2041) IECC email 2005}) 16. Rac1 {[%emt 0:06:11]} (16. Ng5 $1 $16) 16... Rac8 $1 $11 {[%emt 0:03:50]} 17. b3 {[%emt 0:10:11]} (17. d5 $5 Bc5 18. Bxh7+ Kxh7 19. Ng5+ Kg8 20. Qh3 Rxd5 21. Rxd5 (21. Qh7+ Kf8 $15) 21... Bxf2+ 22. Kxf2 Qxd5 23. Qh7+ Kf8 24. Qh8+ Ke7 25. Qxg7 $15) 17... Na5 {[%emt 0:10:15]} 18. Bd3 {[%emt 0:11:54]} Qd5 {[%emt 0:02:54]} 19. h3 {[%emt 0:01:54]} Ba3 {[%emt 0:04:54]} 20. Rxc8 {[%emt 0:01:15]} Rxc8 {[%emt 0:00:08]} 21. Be5 {[%emt 0:03:13]} h6 {[%emt 0:06:37]} 22. Bb1 {[%emt 0:02:52]} Bd6 {[%emt 0:06:43]} 23. Qd3 {[%emt 0:03:27] [#] Black must now prevent Qh7+.} Bxe5 {[%emt 0:01:46]} (23... f5 {seems wilder.} 24. Qe3 Bxe5 25. Qxe5 Qxe5 26. Nxe5 Nc6) 24. dxe5 {[%emt 0:00:43] Threatens to win with Qh7+.} Qxd3 {[%emt 0:03:52]} 25. Bxd3 {[%emt 0:00:09]} Bxf3 {[%emt 0:01:54]} 26. gxf3 {[%emt 0:00:02][%mdl 4096] Endgame KRB-KRN} Nc6 {[%emt 0:04:06]} 27. f4 {[%emt 0:05:23]} (27. Rc1 $11 Rd8 28. Rxc6 Rxd3 29. Rc8+ Kh7 30. Rc7) 27... Nb4 {[%emt 0:03:17]} (27... Rd8 $15) 28. Bc4 {[%emt 0:00:19][%cal Of4f5] The position is equal.} a6 {[%emt 0:03:13]} 29. a3 {[%emt 0:00:23]} b5 $1 {[%emt 0:00:20]} 30. Bxe6 {[%emt 0:01:57]} fxe6 {[%emt 0:00:09]} 31. axb4 {[%emt 0:00:03] KR-KR} Rc3 {[%emt 0:00:58][%csl LRb3,LRh3]} 32. Rd6 {[%emt 0:00:51][%csl LRa6,LRe6]} Rxb3 {[%emt 0:00:48]} 33. Rxe6 {[%emt 0:00:41]} Rxb4 {[%emt 0:00:09]} 34. Rxa6 {[%emt 0:00:21]} Rxf4 {[%emt 0:00:32]} 35. Rb6 {[%emt 0:00:14]} b4 {[%emt 0:00:43]} 36. Kg2 {[%emt 0:00:12]} Re4 {[%emt 0:01:02]} 37. Rb5 {[%emt 0:00:42]} Kf7 {[%emt 0:00:28]} 38. f3 {[%emt 0:00:57]} Rc4 {[%emt 0:00:34]} 39. Rb6 {[%emt 0:00:04]} h5 {[%emt 0:00:41][%cal Bh6h5,Bh5h4][%mdl 32]} 40. Kf2 {[%emt 0:00:51]} h4 {[%emt 0:00:29]} 41. Ke3 {[%emt 0:30:35]} Rc3+ {[%emt 0:30:33]} 42. Kf4 {[%emt 0:00:35]} b3 {[%emt 0:00:00]} 43. Kg4 {[%emt 0:00:00]} g5 {[%emt 0:00:00]} 44. Kxg5 {[%emt 0:00:00]} Rxf3 {[%emt 0:00:00]} 45. Kxh4 {[%emt 0:00:00]} Re3 {[%emt 0:00:00]} 46. Kg4 {[%emt 0:00:00]} Rxe5 {[%emt 0:00:00]} 47. Rxb3 {[%emt 0:00:00]} Kg6 {[%emt 0:00:00]} 48. Rb6+ {[%emt 0:00:00]} Kg7 {[%emt 0:00:00]} 49. h4 {[%emt 0:00:00]} Ra5 {[%emt 0:00:00]} 50. Rb4 {[%emt 0:00:00]} Kh6 {[%emt 0:00:00]} 51. Rc4 {[%emt 0:00:00]} Rb5 {[%emt 0:00:00]} 52. h5 {[%emt 0:00:00]} Rg5+ {[%emt 0:00:00] Weighted Error Value: White=0.13 (very precise) /Black=0.14 (very precise)} 1/2-1/2

[Event "44th Chess Olympiad Women 2022"]
[Site "Chennai"]
[Date "2022.07.30"]
[Round "2.24"]
[White "Rodriguez Arrieta, Maria Elena"]
[Black "Bach, Ngoc Thuy Duong"]
[Result "0-1"]
[ECO "B51"]
[WhiteElo "1849"]
[BlackElo "2192"]
[Annotator "TA"]
[PlyCount "86"]
[EventDate "2022.07.29"]
[EventType "team-tourn"]
[EventCountry "IND"]
[SourceTitle "playchess.com"]
[Source "ChessBase"]
[SourceQuality "1"]
[WhiteTeam "Costa Rica"]
[BlackTeam "Vietnam"]
[WhiteTeamCountry "CRI"]
[BlackTeamCountry "VIE"]
[TimeControl "40/5400+30:1800+30"]

{[%evp 20,86,39,38,41,42,41,36,40,20,64,55,53,64,86,77,79,87,156,155,266,275,247,-68,-57,-87,-72,-79,-79,-87,-81,-89,-90,-84,-85,-139,-133,-201,-200,-222,-233,-230,-235,-228,-229,-232,-234,-226,-221,-280,-281,-274,-284,-275,-281,-304,-304,-304,-304,-380,-371,-485,-387,-552,-380,-693,-656,-616,-604]} 1. e4 {[%emt 0:00:41] Ponomariov,R} c5 {[%emt 0:00:10]} 2. Nf3 {[%emt 0:00:05]} d6 {[%emt 0:00:07]} 3. Bb5+ {[%emt 0:00:07]} Nc6 {[%emt 0:00:11]} 4. O-O {[%emt 0:00:13]} Bd7 {[%emt 0:00:08]} 5. Re1 {[%emt 0:00:18]} Nf6 {[%emt 0:00:49]} 6. c3 {[%emt 0:00:18]} a6 {[%emt 0:00:05]} 7. Bf1 {[%emt 0:00:14]} Bg4 {[%emt 0:00:08]} 8. h3 {[%emt 0:00:30]} Bxf3 {[%emt 0:00:06]} 9. Qxf3 {[%emt 0:00:05]} g6 {[%emt 0:00:14] 9...e6 is more advanced technology.} 10. d3 {[%emt 0:00:16][%cal Bd2d3,Bd3d4][%mdl 32]} Bg7 {[%emt 0:00:16]} 11. Be3 {[%emt 0:00:09]} Nd7 {[%emt 0:00:43][%cal Bf6d7,Bd7b6,Bb6a4][%mdl 32] B51: Sicilian: Moscow Variation (3 Bb5+) without 3...Bd7.} 12. Nd2 {[%emt 0:01:11]} O-O {[%emt 0:02:01]} 13. Qd1 {[%emt 0:01:05]} b5 {[%emt 0:12:46] White is slightly better.} 14. Nf3 {[%emt 0:02:26]} Nb6 {[%emt 0:06:10]} 15. d4 {[%emt 0:03:04]} Na4 {[%emt 0:09:04]} 16. Re2 {[%emt 0:05:10]} Qa5 {[%emt 0:05:35]} 17. Rc1 {[%emt 0:01:47] [#]} Rfd8 $146 {[%emt 0:02:14]} ({Predecessor:} 17... Rad8 18. Rec2 Qc7 19. b3 Nb6 20. a4 bxa4 21. bxa4 c4 22. a5 Nxa5 23. Ra1 Nb3 24. Rxa6 {1-0 (36) Ponomariov,R (2726)-Caruana,F (2775) Dortmund 2012 CBM 150 [Ponomariov,R]}) 18. Rec2 {[%emt 0:09:31]} b4 {[%emt 0:05:01]} (18... Qc7 $142) 19. cxb4 $1 $16 {[%emt 0:09:36]} Nxb4 {[%emt 0:03:04]} (19... Qxb4 $16 20. Bd2 (20. dxc5 dxc5 21. Bd2 Qb6 $16) 20... Qb7) 20. Rd2 $1 $18 {[%emt 0:00:15]} Nc6 {[%emt 0:08:06][%cal Oc5d4]} 21. b3 $2 {[%emt 0:19:58]} (21. a3 $1 $18) 21... Nc3 $15 {[%emt 0:02:14]} 22. Qc2 {[%emt 0:00:39]} cxd4 {[%emt 0:00:21] 0x0.0024d816c132dp-1022s more active pieces.} 23. Nxd4 {[%emt 0:00:38]} Nxd4 {[%emt 0:00:25]} 24. Bxd4 {[%emt 0:00:12] [#]} Nxe4 {[%emt 0:05:22]} 25. Rdd1 {[%emt 0:12:11]} Bxd4 {[%emt 0:03:59]} 26. Rxd4 {[%emt 0:06:05]} d5 {[%emt 0:00:50][%cal Oa8c8]} 27. b4 {[%emt 0:13:03]} ({White should try} 27. Bd3) 27... Qb6 {[%emt 0:01:54]} 28. Rcd1 {[%emt 0:00:06]} (28. Qb2 $17 {is a better defense.}) 28... e6 {[%emt 0:02:42]} 29. a4 {[%emt 0:00:20]} Rdc8 {[%emt 0:01:04]} 30. Qb2 {[%emt 0:00:31]} Nc3 {[%emt 0:04:08]} 31. R1d3 {[%emt 0:04:12][%cal Od3c3]} Nxa4 {[%emt 0:03:34]} 32. Qa1 {[%emt 0:00:27] [#]} Qc6 {[%emt 0:01:08]} 33. Ra3 {[%emt 0:02:04] [#]} Nc3 {[%emt 0:01:14]} 34. Rxa6 {[%emt 0:02:55]} Rxa6 {[%emt 0:00:45]} 35. Qxa6 {[%emt 0:00:06]} Qxa6 {[%emt 0:00:10]} 36. Bxa6 $19 {[%emt 0:00:05][%mdl 4096] Endgame KRB-KRN} Ra8 {[%emt 0:01:11]} 37. Bf1 {[%emt 0:00:21]} Ra1 {[%emt 0:00:38] White must now prevent ...Ne2+.} 38. Rd2 {[%emt 0:00:10] Against Ne2+} Rb1 {[%emt 0:00:15] Inhibits Rb2.} 39. Rc2 {[%emt 0:02:07]} d4 {[%emt 0:04:59][%cal Bd5d4,Bd4d3][%mdl 32] aiming for ...Ne4.} 40. f4 {[%emt 0:01:53]} Kg7 {[%emt 0:04:33] Threatens to win with ...Ne4.} 41. b5 {[%emt 0:32:03]} (41. Rd2 {keeps fighting.}) 41... Nd5 {[%emt 0:30:47]} 42. g3 $2 {[%emt 0:01:20]} (42. Rf2) 42... Ne3 {[%emt 0:01:17][%csl LRc2,LRf1]} 43. Rf2 {[%emt 0:00:09]} d3 {[%emt 0:00:10] Quite a comeback for Black.  Weighted Error Value: White=0.48/Black=0.19 (very precise)} 0-1